Cogmind - Beta 13 @@@ ROGUE MODE // 2024.05.05 @ 13:46:39 Player: TurnLeft25 Result: Destroyed by 8R-AWN with 8R-AWN's Boregun Performance ------------- Evolutions (0) 0 Regions Visited (3) 600 Robots Destroyed (12) 60 Value Destroyed (120) 120 Prototype IDs (25) 500 Alien Tech Used (0) 0 Bonus (300) 300 TOTAL SCORE: 1580 Bonus ------- Aligned with FarCom 300 Cogmind --------- Core Integrity 0/250 Matter 252/300 Energy 99/100 System Corruption 3% Temperature Cool (0) Movement Core (100) Ox1 Location -10/Exiles Parts ------- > --- POWER (1) -------- (None) > --- PROPULSION (2) --- (None) > --- UTILITY (2) ------ Small Storage Unit Core Shielding > --- WEAPON (2) ------- (None) > --- INVENTORY (8) ---- Ion Engine Authchip [Weapon] AWS/Autocannon Mining Laser Peak State ------------ > --- POWER ------------ Ion Engine > --- PROPULSION ------- Light Treads > --- UTILITY ---------- Small Storage Unit Core Shielding > --- WEAPON ----------- Assault Rifle Light Assault Rifle > --- INVENTORY -------- Ion Engine Authchip [Weapon] AWS/Autocannon Grenade Launcher Grenade Launcher Mining Laser [Rating: 9] Favorites ----------- Power Ion Engine Engine Ion Engine Propulsion Light Treads Treads Light Treads Utility Small Storage Unit Storage Small Storage Unit Protection Core Shielding Weapon Assault Rifle Ballistic Gun Assault Rifle Launcher Grenade Launcher Build | -11 -10 -10 -10 ------- Run | Yrd Mat Min Exi Slots Evolved . | . . . . Power . | . . . . Propulsion . | . . . . Utility . | . . . . Weapon . | . . . . Parts Attached 12 | 6 . 2 4 Power 1 | 1 . . . Engine 1 | 1 . . . Core . | . . . . Reactor . | . . . . Propulsion 2 | 2 . . . Treads 2 | 2 . . . Leg . | . . . . Wheel . | . . . . Hover . | . . . . Flight . | . . . . Utility 2 | 1 . 1 . Device . | . . . . Storage 1 | 1 . . . Processor . | . . . . Hackware . | . . . . Protection 1 | . . 1 . Artifact . | . . . . Weapon 7 | 2 . 1 4 Energy Gun . | . . . . Energy Cannon . | . . . . Ballistic Gun 5 | 2 . 1 2 Ballistic Cannon . | . . . . Launcher 2 | . . . 2 Special Weapon . | . . . . Impact Weapon . | . . . . Slashing Weapon . | . . . . Piercing Weapon . | . . . . Special Melee Weapon . | . . . . Unidentified Prototypes . | . . . . Parts Lost 8 | . . 2 6 Power 1 | . . . 1 Propulsion 2 | . . 1 1 Utility . | . . . . Weapon 5 | . . 1 4 Highest Loss Streak 6 | . . 2 6 To Critical Strikes 2 | . . . 2 Average Slot Usage (%) 82 | . 85 81 80 Engine 13 | . 14 14 12 Treads 18 | . 28 15 12 Storage 14 | . 14 14 14 Protection 7 | . . 9 14 Ballistic Gun 27 | . 28 28 26 Naked Turns . | . . . . Heaviest Build 14 | 13 13 14 14 Greatest Support 40 | 40 40 20 20 Greatest Overweight (x) 2 | 1 . . 2 Average Overweight (x) . | . . . . Largest Inventory Capacity 8 | 8 8 8 8 Average Capacity 7 | 6 8 8 8 Most Carried 8 | 5 4 6 8 Average Carried 4 | 1 1 4 6 Final Capacity 8 | 8 8 8 8 Final Carried 6 | 1 4 6 6 Class Distribution -------------------- 100% | Mutant Dominant Class ---------------- Mutant | -10/Materials Mutant | -10/Mines Mutant | -10/Exiles Resources | -11 -10 -10 -10 ----------- Run | Yrd Mat Min Exi Matter Collected 430 | 238 122 66 4 Remotely . | . . . . Salvage Created 189 | . 128 51 10 Parts 23 | . 18 5 . Haulers Intercepted . | . . . . Recyclers Shooed . | . . . . Parts Field Recycled . | . . . . Retrieved Matter . | . . . . Parts Self-Destructed . | . . . . Prevented . | . . . . Kills | -11 -10 -10 -10 ------- Run | Yrd Mat Min Exi Combat Hostiles Destroyed 19 | . 9 3 7 Guns 13 | . 9 3 1 AOE 6 | . . . 6 Classes Destroyed 2 | . 1 . 1 Swarmer 12 | . 9 3 . Assembled 7 | . . . 7 Best Kill Streak 7 | . 3 2 7 Combat Bots Only 7 | . 3 2 7 Max Kills in Single Turn 4 | . 1 1 4 Gunslinging . | . . . . Exploded 4 | . . . 4 Melee . | . . . . Uniques/NPCs Destroyed . | . . . . Combat | -11 -10 -10 -10 -------- Run | Yrd Mat Min Exi Hostile Shots Fired 137 | . 63 41 33 Missed 44 | . 21 11 12 Damage Taken 1078 | . 333 237 508 Core 252 | . 52 61 139 Absorbed by Shields . | . . . . Redirected to Shielding 26 | . . . 26 Core Remaining (%) 100 | 100 . . . Volleys Fired 48 | . 26 15 7 Largest 2 | . 2 2 2 Hottest 60 | . 40 40 60 Shots Fired 96 | . 52 30 14 Gun 94 | . 52 30 12 Cannon . | . . . . Launcher 2 | . . . 2 Special . | . . . . Kinetic 94 | . 52 30 12 Thermal . | . . . . Explosive 2 | . . . 2 Electromagnetic . | . . . . Robot Hit Streak 5 | . 4 5 4 Robot Miss Streak 7 | . 7 3 3 Penetration Max . | . . . . Secondary Targets 4 | . 2 2 . Max Gunslinging Chain 1 | . 1 1 . Shots Hit Robots 47 | . 24 15 8 Core Hits 32 | . 13 6 13 Critical Kills . | . . . . Critical Parts Destroyed . | . . . . Critical Strikes . | . . . . Melee Attacks . | . . . . Impact . | . . . . Slashing . | . . . . Piercing . | . . . . Sneak Attacks . | . . . . Combat Hostiles . | . . . . Follow-up Attacks . | . . . . Damage Inflicted 898 | 2 271 174 451 Guns 508 | . 271 172 65 Cannons . | . . . . Explosions 386 | . . . 386 Melee . | . . . . Ramming 4 | 2 . 2 . Kinetic 508 | . 271 172 65 Thermal . | . . . . Explosive 386 | . . . 386 Electromagnetic . | . . . . Impact . | . . . . Slashing . | . . . . Piercing . | . . . . Highest Corruption 3 | . 1 1 3 Average Corruption 1 | . 1 1 1 Corruption Purged . | . . . . Corruption Blocked . | . . . . Effects 11 | . 2 3 6 Message Errors 4 | . . 1 3 Energy Discharges 2 | . . 2 . Data Loss (minor) 2 | . 1 . 1 Data Loss (major) 1 | . 1 . . Misfires 2 | . . . 2 Overload Shots . | . . . . Overflow Damage 22 | . . . 22 Projectiles . | . . . . Explosions 22 | . . . 22 Melee . | . . . . Knockbacks . | . . . . Impact . | . . . . Kinetic . | . . . . Secondary . | . . . . Self-Inflicted Damage 75 | . . . 75 Shots 2 | . . . 2 Rammed 2 | 1 . 1 . Targets Rammed 2 | 1 . 1 . Kicked . | . . . . Crushed . | . . . . Highest Temperature 15 | . . . 15 Average Temperature 15 | . . . 15 Received Heat Transfer 20 | . . . 20 Siege Activations . | . . . . Robots Corrupted . | . . . . Combat Hostiles . | . . . . Parts Fried . | . . . . Impact Corruptions . | . . . . Robots Melted . | . . . . Combat Hostiles . | . . . . Parts Melted . | . . . . Heat Transferred . | . . . . Parts Sabotaged . | . . . . Parts Stolen . | . . . . Parts Stripped . | . . . . Power Chain Reactions . | . . . . Alert | -11 -10 -10 -10 ------- Run | Yrd Mat Min Exi Peak Influence 218 | . 218 134 . Initial 84 | . . 84 . Average 128 | . 147 129 . Maximum Alert Level 1 | . 1 . . Low Security (%) 82 | 100 55 100 . Level 1 17 | . 44 . . Level 2 . | . . . . Level 3 . | . . . . Level 4 . | . . . . Level 5 . | . . . . High Security . | . . . . Max Security . | . . . . Squads Dispatched . | . . . . Investigation . | . . . . Extermination . | . . . . Reinforcement . | . . . . Assault . | . . . . Garrison . | . . . . Intercept . | . . . . Searches Triggered . | . . . . Construction Impeded . | . . . . Haulers Reinforced . | . . . . Active Scanning Responses . | . . . . Cargo Convoy Interrupts . | . . . . Stealth | -11 -10 -10 -10 --------- Run | Yrd Mat Min Exi Distress Signals . | . . . . Communications Jammed . | . . . . Distress Signals . | . . . . Times Spotted 20 | . 9 3 8 Peak Tracking Total 9 | . 3 3 9 Tactical Retreats . | . . . . Traps | -11 -10 -10 -10 ------- Run | Yrd Mat Min Exi Traps Triggered . | . . . . Indirectly . | . . . . Trap Hack Attempts . | . . . . Triggered . | . . . . Disarmed . | . . . . Reprogrammed . | . . . . Reused . | . . . . Traps Extracted . | . . . . Installed . | . . . . Triggered . | . . . . Machines | -11 -10 -10 -10 ---------- Run | Yrd Mat Min Exi Machines Disabled 2 | . . . 2 Max in Single Turn 1 | . . . 1 Machines Repaired . | . . . . Machines Dismantled . | . . . . Machines Sabotaged . | . . . . Overloaded Fab Kills . | . . . . Hacking | -11 -10 -10 -10 --------- Run | Yrd Mat Min Exi Machines Accessed 3 | . 2 . 1 Terminals 2 | . 2 . . Fabricators . | . . . . Repair Stations . | . . . . Recycling Units . | . . . . Scanalyzers . | . . . . Garrison Access . | . . . . Total Hacks 5 | . 4 . 1 Successful 4 | . 3 . 1 Failed 1 | . 1 . . Catastrophic . | . . . . Database Lockouts . | . . . . Manual 3 | . 2 . 1 Terminals 4 | . 4 . . Fabricators . | . . . . Repair Stations . | . . . . Recycling Units . | . . . . Scanalyzers . | . . . . Garrison Access . | . . . . Terminal Hacks 4 | . 3 . 1 Prototype ID Bank 1 | . 1 . . Branch Access Points 1 | . 1 . . Zone Layout 1 | . 1 . . Derelict Proto ID Bank 1 | . . . 1 Fabricator Hacks . | . . . . Repair Station Hacks . | . . . . Recycling Unit Hacks . | . . . . Scanalyzer . | . . . . Garrison Access Hacks . | . . . . Unauthorized Hacks . | . . . . Terminals . | . . . . Fabricators . | . . . . Repair Stations . | . . . . Recycling Units . | . . . . Scanalyzers . | . . . . Garrison Access . | . . . . Data Cores Recovered . | . . . . Used . | . . . . Hacking Detections 1 | . 1 . . Full Trace Events 1 | . 1 . . Feedback Events 1 | . 1 . . Corruption 1 | . 1 . . Feedback Blocked . | . . . . Robot Schematics Acquired . | . . . . Robots Built . | . . . . Authchips . | . . . . Time . | . . . . Total Robot Build Rating . | . . . . Part Schematics Acquired . | . . . . Parts Built . | . . . . Authchips . | . . . . Time . | . . . . Total Part Build Rating . | . . . . Parts Repaired . | . . . . Time . | . . . . Parts Recycled . | . . . . Recycled Matter . | . . . . Retrieved Matter . | . . . . Retrieved Components . | . . . . Parts Scanalyzed . | . . . . Part Schematics Acquired . | . . . . Parts Damaged . | . . . . Bothacking | -11 -10 -10 -10 ------------ Run | Yrd Mat Min Exi Used RIF Installer . | . . . . Robots Hacked . | . . . . Non-combat . | . . . . Combat . | . . . . Robot Hacks Applied . | . . . . Relay Couplers Released . | . . . . Fabnet Peak Effective % . | . . . . Robots Rewired . | . . . . Allies Hacked . | . . . . Hacks Repelled . | . . . . Allies | -11 -10 -10 -10 -------- Run | Yrd Mat Min Exi Total Allies . | . . . . Largest Group . | . . . . Highest-Rated Group . | . . . . Highest-Rated Ally . | . . . . Total Orders . | . . . . Ally Attacks . | . . . . Total Damage . | . . . . Kills . | . . . . Allies Corrupted . | . . . . Allies Melted . | . . . . Intel | -11 -10 -10 -10 ------- Run | Yrd Mat Min Exi Robot Analysis Total . | . . . . Derelict Logs Recovered 2 | . . 2 . Drone Launches . | . . . . Drone Recoveries . | . . . . Exploration | -11 -10 -10 -10 ------------- Run | Yrd Mat Min Exi Turns Passed 1040 | 48 300 402 290 Spaces Moved 562 | 31 141 221 169 Core 26 | 13 . . 13 Treads 536 | 18 141 221 156 Legs . | . . . . Wheels . | . . . . Hover . | . . . . Flight . | . . . . Fastest Speed 50 | 50 160 160 100 Average Speed 156 | 115 160 160 156 Slowest Speed 160 | 160 160 160 160 Overloaded Moves . | . . . . Propulsion Burnouts . | . . . . Robots Hopped . | . . . . Cave-ins Triggered . | . . . . Exploration Rate (%) 27 | 3 26 38 43 Regions Visited 3 Branch Regions 2 Pre-discovered Areas 2 | . . 2 . Known Exits Taken 1 | . 1 . . Unknown Exits Taken 2 | 1 . 1 . Scrap Searched 2 | . . 2 . Spaces Dug . | . . . . Terrain Destroyed 6 | . . . 6 Melee . | . . . . Projectile . | . . . . AOE 6 | . . . 6 Terrain Rammed . | . . . . Walls Destroyed . | . . . . Machines Disabled . | . . . . Actions | -11 -10 -10 -10 --------- Run | Yrd Mat Min Exi Total 635 | 42 169 242 182 Wait . | . . . . Move 559 | 30 140 220 169 Hop . | . . . . Pick Up 13 | 5 3 4 1 Fast Attach 2 | 2 . . . Attach 8 | 4 . 2 2 Detach . | . . . . Swap 2 | . . . 2 Drop 1 | . . . 1 Fire 48 | . 26 15 7 Melee . | . . . . Ram . | . . . . Kick . | . . . . Crush 2 | 1 . 1 . Escape Stasis . | . . . . Rewire . | . . . . Trap . | . . . . Miscellaneous . | . . . . Route ------- -11/Scrapyard -10/Materials (discovered 2 exits: *Min x2) -10/Mines (discovered 2 exits: [*Mat] / *Exi) -10/Exiles History --------- Turn | Location | Event 22 | -11/Scrapyard | Discovered new exit (range 15) 49 | -11/Scrapyard | Entered Materials 95 | -10/Materials | Identified exit to Mines 316 | -10/Materials | Build established: Mutant 349 | -10/Materials | Entered Mines 397 | -10/Mines | Assembled infested the area 420 | -10/Mines | Learned location of Zion (-7) 553 | -10/Mines | Discovered new exit (range 8) 623 | -10/Mines | YI-UF0 nonchalantly dropped a Grenade Launcher on the ground 743 | -10/Mines | Discovered new exit (range 5) 751 | -10/Mines | Entered Exiles 791 | -10/Exiles | Met 8R-AWN 819 | -10/Exiles | Met EX-HEX 875 | -10/Exiles | Met EX-BIN 899 | -10/Exiles | Aligned with FarCom system 900 | -10/Exiles | Given EX-Vault access code 939 | -10/Exiles | Opened EX-Vault 950 | -10/Exiles | Found AWS/Autocannon 987 | -10/Exiles | Warned to stay clear of 0b10 Research branches 989 | -10/Exiles | Attacked by the Exiles 1007 | -10/Exiles | Core integrity fell below 50% 1030 | -10/Exiles | Core integrity fell below 20% 1036 | -10/Exiles | Destroyed 7 combat bots 1041 | -10/Exiles | Destroyed by 8R-AWN with 8R-AWN's Boregun Last Messages --------------- 01026_ Penetrated by HV Slug. 01026_ HV Slug penetrates Earth. 01029_ Penetrated by HV Slug. 01029_ HV Slug penetrates Earth. 01029_ HV Slug penetrates Wall. 01031_ Penetrated by HV Slug. 01031_ Critical hit (Destroy). 01031_ Assault Rifle destroyed. 01031_ HV Slug penetrates Earth. 01031_ Penetrated by HV Slug. 01031_ Critical hit (Destroy). 01031_ Lgt. Assault Rifle destroyed. 01031_ HV Slug penetrates Earth. 01033_ Penetrated by HV Slug. 01033_ HV Slug penetrates Earth. 01033_ HV Slug penetrates Machine. 01036_ HV Slug penetrates Wall. 01036_ Penetrated by HV Slug. 01036_ HV Slug penetrates Machine. 01041_ Penetrated by HV Slug. Map ----- +----------------------------------------------------+ | ??????????????????#""X" #????????????????? | | ??????????????????#" #????????????????? | | ??????????????????#" ## #????????????????? | | ??????????????????#""""""?# #?#########??????? | | ???????????????????#"###??# #?#"""""""#??????? | | ??????????????????????????# #?#"""""""#??????? | | ??????????????????????????# #?#"""""""#??????? | | ?????????????????????????## ###"" """"#??????? | | ?????????????????????????#" """"#??????? | | ?????????????????????????#" """#??????? | | ?????????????????????????#" """#??????? | | ?????????????????????????#" """#??????? | | ?????????????????????????#" """#??????? | | ?????????????????????????#" """#??????? | | ?????????????????????????## """"??????? | | ????????????????????????### """#??????? | | ????????????????????????# "X" """???????? | | ?????????????????????????# """ #??????? | | ?????????????????????????# """""""""#??????? | | ?????????????????????????# ###########??????? | | ????????????????????????## #???????????????? | | ???????????????????###### #???????????????? | | ??????????????????## """"" ##???????????????? | | ?????????????????""""" ##???##########?? | | ??????????????? "" """ " #####"""""""""## | | ?????????????? " " @ g " """ """"# | | ???????????? "" " | | ?????????? " """ | | ??????????? " " | | ??????????? " " | | ???????????? " | | ???????????? """""" | | ???????????? ######""" | | ????????????? ""#?????#####" " | | ????????????? """#??????????##""" | | ?????????????? ""?#????????????#"""" | | ?????????????? ????????????????#"" | | ?????????????????????????????????"""" | | ????????????????????????????????" | | ??????????????????????????????" | | ?????????????????????????????? | | ?????????????????????????????? | | ?????????????????????????????? " | | ????????????????????????????? "" """ | | ??????????????????????????????##""" " " ""#" | | ????????????????????????????????####""" """##""""" | | ???????????????????????????????????###""""??###### | | ?????????????????????????????????????###?????????? | | ?????????????????????????????????????????????????? | | ?????????????????????????????????????????????????? | +----------------------------------------------------+ Best States ------------- Heat Dissipation 25 Energy Generation 10 Energy Capacity 250 Matter Stores 300 Matter Capacity 300 Sight Range 16 Terrain Scan Density 10 Core Shielding 20 Evasion (%) 50 Recoil Reduction 2 Authchip Count 1 Item Schematics ----------------- None Robot Schematics ------------------ None Fabricated ------------ Nothing Alien Tech Used ----------------- None Achievements -------------- None Challenges ------------ None Game ------ Seed SeismicPropulsionProjector Manual? 0 Play Time 00:07:23 Cumulative 24.6 hours Start 2024.05.05 @ 13:40:57 End 2024.05.05 @ 13:46:39 Sessions 1 Manual Loads 0 Difficulty Rogue Special Mode None Game No. 41 Rogue 41 Adventurer 0 Explorer 0 Win Type - Total 0 Types 0/0/0/0/0/0/0/0/0 Lore% 21 Gallery% 33 Achievement% 24 Wizard Run 0 Options --------- Layout 1 ASCII 0 Keyboard 0 Movement Mouse Keybinds 0 Fullscreen 1 Font 24/Smallcaps Map View 50x40 Zoom Use 0% Tactical HUD 1 Map Filters NONE Filters NONE Steam 1 RUN: 31c5aa92-cbf0-410c-9eed-14c0cb828ed9